Cogmind - Beta 14 @@@ ROGUE MODE // 2024.10.27 @ 20:19:13 Player: ngplus Result: Destroyed by G-47 Trooper with Particle Gun Performance ------------- Evolutions (2) 1000 Regions Visited (4) 800 Robots Destroyed (43) 215 Value Destroyed (1242) 1242 Prototype IDs (0) 0 Alien Tech Used (0) 0 Bonus (-232) -232 TOTAL SCORE: 3025 Bonus ------- Friendly Fire -232 Cogmind --------- Core Integrity 0/550 Matter 298/300 Energy 150/150 System Corruption 0% Temperature Cool (9) Movement Walking (120) Location -8/Materials Parts ------- > --- POWER (1) -------- Light Angular Momentum Engine > --- PROPULSION (4) --- Aluminum Leg > --- UTILITY (3) ------ (None) > --- WEAPON (3) ------- (None) > --- INVENTORY (5) ---- Light Ion Engine Light Ion Engine Peak State ------------ > --- POWER ------------ (None) > --- PROPULSION ------- Carbon-fiber Leg > --- UTILITY ---------- Small Storage Unit Scrap Shield > --- WEAPON ----------- Backup Laser I Grenade Launcher > --- INVENTORY -------- Light Ion Engine Light Ion Engine Light Angular Momentum Engine Aluminum Leg Aluminum Leg [Rating: 10] Favorites ----------- Power Ion Engine Engine Ion Engine Propulsion Aluminum Leg Leg Aluminum Leg Utility Small Storage Unit Storage Small Storage Unit Protection Light Armor Plating Weapon Grenade Launcher Energy Gun EM Pulse Gun Ballistic Gun Assault Rifle Launcher Grenade Launcher Build | -11 -10 -10 -10 -8 ------- Run | Yrd Mat Min Sub Mat Slots Evolved 4 | . . . . 4 Power . | . . . . . Propulsion 2 | . . . . 2 Utility 1 | . . . . 1 Weapon 1 | . . . . 1 Parts Attached 20 | 8 4 1 2 5 Power 3 | 2 . . . 1 Engine 3 | 2 . . . 1 Core . | . . . . . Reactor . | . . . . . Propulsion 5 | 2 . . 1 2 Treads . | . . . . . Leg 5 | 2 . . 1 2 Wheel . | . . . . . Hover . | . . . . . Flight . | . . . . . Utility 3 | 1 1 . . 1 Device . | . . . . . Storage 1 | 1 . . . . Processor . | . . . . . Hackware . | . . . . . Protection 2 | . 1 . . 1 Artifact . | . . . . . Weapon 9 | 3 3 1 1 1 Energy Gun 4 | 2 1 . . 1 Energy Cannon . | . . . . . Ballistic Gun 1 | 1 . . . . Ballistic Cannon . | . . . . . Launcher 4 | . 2 1 1 . Special Weapon . | . . . . . Impact Weapon . | . . . . . Slashing Weapon . | . . . . . Piercing Weapon . | . . . . . Special Melee Weapon . | . . . . . Unidentified Prototypes . | . . . . . Parts Lost 13 | . . 2 3 8 Power 1 | . . . . 1 Propulsion 4 | . . . 2 2 Utility 3 | . . 1 . 2 Weapon 5 | . . 1 1 3 Highest Loss Streak 4 | . . 1 2 4 To Critical Strikes . | . . . . . Average Slot Usage (%) 80 | . 96 93 80 30 Engine 12 | . 14 14 14 6 Leg 24 | . 28 28 23 12 Storage 12 | . 14 14 14 4 Protection 6 | . 10 8 . . Energy Gun 4 | . 11 . . 1 Launcher 20 | . 16 28 28 5 Peak Build Rating 10 | 6 7 7 9 10 Average Rating 6 | 4 6 6 7 6 On Entrance 5 | . 6 7 6 8 Naked Turns . | . . . . . Heaviest Build 19 | 14 19 19 16 16 Greatest Support 25 | 20 20 20 25 20 Greatest Overweight (x) 1 | . . . 1 1 Average Overweight (x) . | . . . . . Largest Inventory Capacity 8 | 8 8 8 8 8 Average Capacity 7 | 6 8 8 8 6 Most Carried 8 | 5 7 7 8 8 Average Carried 5 | 2 5 6 7 4 Final Capacity 8 | 8 8 8 8 5 Final Carried 8 | 3 7 6 8 2 Class Distribution -------------------- 100% | Mutant Dominant Class ---------------- Mutant | -10/Materials Mutant | -10/Mines Mutant | -10/Subcaves Mutant | -8/Materials Resources | -11 -10 -10 -10 -8 ----------- Run | Yrd Mat Min Sub Mat Matter Collected 765 | 202 107 150 110 196 Remotely . | . . . . . Salvage Created 899 | . 331 154 322 92 Parts 84 | . 33 15 30 6 Haulers Intercepted 1 | . 1 . . . Recyclers Shooed 1 | . 1 . . . Parts Field Recycled . | . . . . . Retrieved Matter . | . . . . . Parts Self-Destructed 19 | . . . 19 . Prevented . | . . . . . Kills | -11 -10 -10 -10 -8 ------- Run | Yrd Mat Min Sub Mat Combat Hostiles Destroyed 37 | . 13 6 13 5 Guns 2 | . 2 . . . AOE 35 | . 11 6 13 5 Classes Destroyed 10 | . 6 2 1 1 Builder 1 | . 1 . . . Tunneler 1 | . . 1 . . Hauler 1 | . 1 . . . Recycler 1 | . 1 . . . Watcher 1 | . 1 . . . Swarmer 9 | . 9 . . . Cutter 2 | . . . . 2 Grunt 11 | . 4 4 . 3 Sentry 2 | . . 2 . . Subdweller 13 | . . . 13 . Thug 1 | . . . 1 . Best Kill Streak 8 | . 8 3 6 5 Combat Bots Only 6 | . 5 2 6 5 Max Kills in Single Turn 3 | . 3 2 2 2 Gunslinging . | . . . . . Exploded 3 | . 3 2 2 2 Melee . | . . . . . Uniques/NPCs Destroyed . | . . . . . Combat | -11 -10 -10 -10 -8 -------- Run | Yrd Mat Min Sub Mat Hostile Shots Fired 151 | . 23 20 12 96 Missed 52 | . 8 6 6 32 Damage Taken 2165 | . 213 261 362 1329 Core 751 | . 45 41 109 556 Absorbed by Shields . | . . . . . Core Remaining (%) 61 | 100 . . 22 . Volleys Fired 44 | . 13 8 10 13 Largest 2 | . 2 2 2 2 Hottest 80 | . 80 60 60 60 Shots Fired 81 | . 26 15 18 22 Gun 20 | . 10 . . 10 Cannon . | . . . . . Launcher 61 | . 16 15 18 12 Special . | . . . . . Kinetic . | . . . . . Thermal 10 | . . . . 10 Explosive 61 | . 16 15 18 12 Electromagnetic 10 | . 10 . . . Robot Hit Streak 13 | . 3 5 13 6 Robot Miss Streak 4 | . 4 . . 2 Penetration Max . | . . . . . Secondary Targets 1 | . 1 . . . Max Gunslinging Chain 1 | . 1 . . . Shots Hit Robots 33 | . 5 5 8 15 Core Hits 97 | . 22 17 32 26 Critical Kills . | . . . . . Critical Parts Destroyed . | . . . . . Critical Strikes . | . . . . . Melee Attacks . | . . . . . Impact . | . . . . . Slashing . | . . . . . Piercing . | . . . . . Sneak Attacks . | . . . . . Combat Hostiles . | . . . . . Follow-up Attacks . | . . . . . Damage Inflicted 3223 | . 819 427 1366 611 Guns 109 | . 45 . . 64 Cannons . | . . . . . Explosions 3083 | . 774 427 1366 516 Melee . | . . . . . Ramming 31 | . . . . 31 Kinetic . | . . . . . Thermal 142 | . 78 . . 64 Explosive 3005 | . 696 427 1366 516 Electromagnetic 45 | . 45 . . . Impact . | . . . . . Slashing . | . . . . . Piercing . | . . . . . Highest Corruption 1 | . . 1 1 . Average Corruption 1 | . . 1 1 . Corruption Purged . | . . . . . Corruption Blocked . | . . . . . Effects 7 | . . 5 2 . Message Errors 2 | . . 2 . . Matter Fused 1 | . . 1 . . Data Loss (minor) 3 | . . 2 1 . Alerts 1 | . . . 1 . Overload Shots . | . . . . . Overflow Damage 12 | . 5 . 7 . Projectiles . | . . . . . Explosions 12 | . 5 . 7 . Melee . | . . . . . Knockbacks 1 | . . . . 1 Impact 1 | . . . . 1 Kinetic . | . . . . . Secondary . | . . . . . Self-Inflicted Damage 267 | . 92 30 145 . Shots 12 | . 4 1 7 . Rammed . | . . . . . Targets Rammed 17 | . . . . 17 Kicked 17 | . . . . 17 Crushed . | . . . . . Highest Temperature 102 | . 102 42 . 4 Average Temperature 26 | . 30 20 . 3 Received Heat Transfer 639 | . 12 87 45 495 Siege Activations . | . . . . . Robots Corrupted . | . . . . . Combat Hostiles . | . . . . . Parts Fried . | . . . . . Impact Corruptions . | . . . . . Robots Melted . | . . . . . Combat Hostiles . | . . . . . Parts Melted . | . . . . . Heat Transferred 409 | . 150 . . 259 Parts Sabotaged . | . . . . . Parts Stolen . | . . . . . Parts Stripped . | . . . . . Power Chain Reactions 1 | . 1 . . . Alert | -11 -10 -10 -10 -8 ------- Run | Yrd Mat Min Sub Mat Peak Influence 284 | . 255 284 . 181 Initial 90 | . . 90 . 5 Average 116 | . 122 122 . 116 Maximum Alert Level 1 | . 1 1 . . Low Security (%) 83 | 100 62 91 . 100 Level 1 16 | . 37 8 . . Level 2 . | . . . . . Level 3 . | . . . . . Level 4 . | . . . . . Level 5 . | . . . . . High Security . | . . . . . Max Security . | . . . . . Squads Dispatched 7 | . 2 . . 5 Investigation . | . . . . . Extermination . | . . . . . Reinforcement 7 | . 2 . . 5 Assault . | . . . . . Garrison . | . . . . . Intercept . | . . . . . Searches Triggered . | . . . . . Construction Impeded 1 | . . . . 1 Haulers Reinforced . | . . . . . Active Scanning Responses . | . . . . . Cargo Convoy Interrupts . | . . . . . Stealth | -11 -10 -10 -10 -8 --------- Run | Yrd Mat Min Sub Mat Distress Signals 1 | . 1 . . . Communications Jammed . | . . . . . Distress Signals . | . . . . . Times Spotted 50 | . 14 6 18 12 Peak Tracking Total 9 | . 6 2 9 7 Tactical Retreats 1 | . . . . 1 Traps | -11 -10 -10 -10 -8 ------- Run | Yrd Mat Min Sub Mat Traps Triggered . | . . . . . Indirectly . | . . . . . Trap Hack Attempts . | . . . . . Triggered . | . . . . . Disarmed . | . . . . . Reprogrammed . | . . . . . Reused . | . . . . . Traps Extracted . | . . . . . Installed . | . . . . . Triggered . | . . . . . Machines | -11 -10 -10 -10 -8 ---------- Run | Yrd Mat Min Sub Mat Machines Disabled 4 | . 2 2 . . Max in Single Turn 2 | . 1 2 . . Machines Repaired . | . . . . . Machines Dismantled . | . . . . . Machines Sabotaged . | . . . . . Overloaded Fab Kills . | . . . . . Hacking | -11 -10 -10 -10 -8 --------- Run | Yrd Mat Min Sub Mat Machines Accessed 3 | . 2 1 . . Terminals . | . . . . . Fabricators . | . . . . . Repair Stations 1 | . 1 . . . Recycling Units 1 | . 1 . . . Scanalyzers . | . . . . . Garrison Access . | . . . . . Total Hacks 7 | . 6 1 . . Successful 6 | . 5 1 . . Failed 1 | . 1 . . . Catastrophic . | . . . . . Database Lockouts . | . . . . . Manual . | . . . . . Terminals . | . . . . . Fabricators . | . . . . . Repair Stations 3 | . 3 . . . Recycling Units 3 | . 3 . . . Scanalyzers . | . . . . . Garrison Access . | . . . . . Terminal Hacks 1 | . . 1 . . Open Door 1 | . . 1 . . Fabricator Hacks . | . . . . . Repair Station Hacks 2 | . 2 . . . Scan Component 1 | . 1 . . . Refit 1 | . 1 . . . Recycling Unit Hacks 3 | . 3 . . . Process 1 | . 1 . . . Report Inventory 1 | . 1 . . . Retrieve Matter 1 | . 1 . . . Scanalyzer . | . . . . . Garrison Access Hacks . | . . . . . Unauthorized Hacks . | . . . . . Terminals . | . . . . . Fabricators . | . . . . . Repair Stations . | . . . . . Recycling Units . | . . . . . Scanalyzers . | . . . . . Garrison Access . | . . . . . Data Cores Recovered . | . . . . . Used . | . . . . . Hacking Detections . | . . . . . Full Trace Events . | . . . . . Feedback Events . | . . . . . Feedback Blocked . | . . . . . Robot Schematics Acquired . | . . . . . Robots Built . | . . . . . Authchips . | . . . . . Time . | . . . . . Total Robot Build Rating . | . . . . . Part Schematics Acquired . | . . . . . Parts Built . | . . . . . Authchips . | . . . . . Time . | . . . . . Total Part Build Rating . | . . . . . Parts Repaired . | . . . . . Time . | . . . . . Parts Recycled . | . . . . . Recycled Matter 97 | . 97 . . . Retrieved Matter 118 | . 118 . . . Retrieved Components . | . . . . . Parts Scanalyzed . | . . . . . Part Schematics Acquired . | . . . . . Parts Damaged . | . . . . . Bothacking | -11 -10 -10 -10 -8 ------------ Run | Yrd Mat Min Sub Mat Used RIF Installer . | . . . . . Robots Hacked . | . . . . . Non-combat . | . . . . . Combat . | . . . . . Robot Hacks Applied . | . . . . . Relay Couplers Released . | . . . . . Fabnet Peak Effective % . | . . . . . Robots Rewired . | . . . . . Allies Hacked . | . . . . . Hacks Repelled . | . . . . . Allies | -11 -10 -10 -10 -8 -------- Run | Yrd Mat Min Sub Mat Total Allies . | . . . . . Largest Group . | . . . . . Highest-Rated Group . | . . . . . Highest-Rated Ally . | . . . . . Total Orders . | . . . . . Ally Attacks . | . . . . . Total Damage . | . . . . . Kills . | . . . . . Allies Corrupted . | . . . . . Allies Melted . | . . . . . Intel | -11 -10 -10 -10 -8 ------- Run | Yrd Mat Min Sub Mat Robot Analysis Total . | . . . . . Derelict Logs Recovered 1 | . . . 1 . Drone Launches . | . . . . . Drone Recoveries . | . . . . . Exploration | -11 -10 -10 -10 -8 ------------- Run | Yrd Mat Min Sub Mat Turns Passed 1799 | 64 568 615 222 330 Spaces Moved 1259 | 49 406 487 125 192 Core 26 | 19 . . . 7 Treads . | . . . . . Legs 1233 | 30 406 487 125 185 Wheels . | . . . . . Hover . | . . . . . Flight . | . . . . . Fastest Speed 50 | 50 120 120 120 100 Average Speed 122 | 92 120 120 137 132 Slowest Speed 190 | 120 120 120 190 190 Overloaded Moves . | . . . . . Propulsion Burnouts . | . . . . . Robots Hopped . | . . . . . Cave-ins Triggered . | . . . . . Exploration Rate (%) 40 | 3 73 90 14 21 Regions Visited 4 Branch Regions 2 Pre-discovered Areas 1 | . . . 1 . Known Exits Taken . | . . . . . Unknown Exits Taken 4 | 1 1 1 1 . Scrap Searched 1 | . . 1 . . Spaces Dug 7 | . . . 7 . Terrain Destroyed 231 | . 75 64 59 33 Melee . | . . . . . Projectile . | . . . . . AOE 231 | . 75 64 59 33 Terrain Rammed . | . . . . . Walls Destroyed . | . . . . . Machines Disabled . | . . . . . Actions | -11 -10 -10 -10 -8 --------- Run | Yrd Mat Min Sub Mat Total 1433 | 67 464 502 158 242 Wait 67 | . 26 7 19 15 Move 1255 | 48 405 486 124 192 Hop . | . . . . . Pick Up 22 | 10 9 . 3 . Fast Attach . | . . . . . Attach 18 | 6 4 1 2 5 Detach 2 | . 2 . . . Swap 2 | 2 . . . . Drop 6 | 1 5 . . . Fire 44 | . 13 8 10 13 Melee . | . . . . . Ram . | . . . . . Kick 17 | . . . . 17 Crush . | . . . . . Escape Stasis . | . . . . . Rewire . | . . . . . Trap . | . . . . . Miscellaneous . | . . . . . Route ------- -11/Scrapyard -10/Materials (discovered 2 exits: [*Mat] / *Min) -10/Mines (discovered 3 exits: [*Mat x2] / [*Sub]) -10/Subcaves -8/Materials History --------- Turn | Location | Event 9 | -11/Scrapyard | Discovered new exit (range 15) 65 | -11/Scrapyard | Entered Materials 330 | -10/Materials | Build established: Mutant 396 | -10/Materials | Discovered new exit (range 4) 615 | -10/Materials | Discovered new exit (range 8) 633 | -10/Materials | Entered Mines 706 | -10/Mines | Met a Derelict who couldn't figure out how to use a Trap Extractor 862 | -10/Mines | Discovered new exit (range 5) 1057 | -10/Mines | Discovered new exit (range 8) 1201 | -10/Mines | Discovered new exit (range 11) 1248 | -10/Mines | Entered Subcaves 1270 | -10/Subcaves | Learned location of Storage (-9) 1308 | -10/Subcaves | Ambushed by swarm of Subdwellers 1309 | -10/Subcaves | Ambushed by Subdwellers from Twisted Machinery 1309 | -10/Subcaves | Ambushed by Subdwellers from Twisted Machinery 1311 | -10/Subcaves | Ambushed by Subdwellers from Twisted Machinery 1311 | -10/Subcaves | Ambushed by Subdwellers from Twisted Machinery 1315 | -10/Subcaves | Core integrity fell below 50% 1410 | -10/Subcaves | Ambushed by Subdwellers from Twisted Machinery 1413 | -10/Subcaves | A Subdweller sparked back to life 1413 | -10/Subcaves | A Subdweller sparked back to life 1413 | -10/Subcaves | A Subdweller sparked back to life 1444 | -10/Subcaves | Discovered new exit (range 14) 1467 | -10/Subcaves | A swath of the cavern ceiling suddenly collapsed 1470 | -10/Subcaves | Entered Materials 1470 | -8/Materials | Evolved 4 slots: Propulsion x2, Utility x1, Weapon x1 1592 | -8/Materials | Lost 3 parts (1p1u1w) 1636 | -8/Materials | Core integrity fell below 50% 1664 | -8/Materials | Lost 4 parts (1n1u2w) 1753 | -8/Materials | Core integrity fell below 20% 1800 | -8/Materials | Destroyed by G-47 Trooper with Particle Gun Last Messages --------------- 01633_ Sml. Storage Unit destroyed. 01635_ Kicked G-47 Trooper out of the way. 01651_ K-01 Serf collects debris. 01657_ Processing Tank disabled. 01678_ K-01 Serf collects debris. 01699_ Acquired 167 matter. 01720_ Kicked G-47 Trooper. 01725_ G-47 Trooper knocked back. 01726_ Kicked G-47 Trooper. 01729_ Kicked G-47 Trooper out of the way. 01741_ Kicked W-25 Informer. 01762_ Aluminum Leg destroyed. 01771_ O-16 Technician: "IFF HANDSHAKE FAILED. SECURING TERMINAL." 01772_ ALERT: Hostiles spotted, dispatching reinforcements to Terminal M009. 01790_ Critical hit (Burn: +37). 01794_ Kicked G-47 Trooper. 01794_ Critical hit (Burn: +37). 01795_ Kicked G-47 Trooper. Map ----- +----------------------------------------------------+ | ????????????????????#### ## #??????? | | ??????????????????????## ## #??????? | | ??????????????????????# # #??????? | | ??????????????????????# # #??????? | | ??????????????????????# T + = #??????? | | ??????????????????????# # #??????? | | ??????????????????????# # * #??????? | | ??????????????????????##### # #??????? | | ??????????????????????????# # #??????? | | ??????????????????????????# ##########??????? | | ??????????????????????????# #???????????????? | | ???????????????????????##?# #???????????????? | | ???????????????????##### ?# ##???? !#???????? | | ???????????????????# =# #??"" #???????? | | ???????????????????# "" # # """ #???????? | | ???????????????????# "T + + """ #???????? | | ???????????????????# "" # # """^ #???????? | | ???????????????????# # #?? #???????? | | ???????????????????# ! + #????###???????? | | ???????????????????######## #??????????????? | | ??????????????????????????# #??????????????? | | ????????????????########### #??????????????? | | ????????????????# # #??????????????? | | ????????????????# # #??????????????? | | ????????????????# o "T" #g #??????????????? | | ????????????????# @gY #??????????????? | | ????????????????########### #??????????????? | | ??????????????????????????# #??????????????? | | ??????????????????????????# ?????????????? | | ??????????????????????????# ????????????? | | ??????????????????????????#######???????????? | | ????????????????????????????????????????????? | | ????????????????????????????????????????????? | | ????????????????????????????????????????????? | | ????????????????????????????????????????????? | | ????????????????????????????????????????????? | | ????????????????????????????????????????????? | | ????????????????????????????????????????????? | | ????????????????????????????????????????????? | | ????????????????????????????????????????????? | | ????????????????????????????????????????????? | | | | | | | | | | | | | | | | | | | +----------------------------------------------------+ Best States ------------- Heat Dissipation 31 Energy Generation 18 Energy Capacity 250 Matter Stores 300 Matter Capacity 300 Sight Range 16 Terrain Scan Density 10 Armor Coverage 800 Evasion (%) 55 Item Schematics ----------------- None Robot Schematics ------------------ None Fabricated ------------ Nothing Alien Tech Used ----------------- None Achievements -------------- Backstab Dramatic Entrance Remodeling Challenges ------------ None Game ------ Seed CargoPropulsionModule Manual? 0 Play Time 00:19:57 Cumulative 4.6 hours Start 2024.10.27 @ 20:02:28 End 2024.10.27 @ 20:19:13 Sessions 1 Manual Loads 0 Difficulty Rogue Special Mode None Game No. 7 Rogue 7 Adventurer 0 Explorer 0 Win Type - Total 0 Types 0/0/0/0/0/0/0/0/0 Lore% 4 Gallery% 9 Achievement% 11 Wizard Run 0 Options --------- Layout 1 ASCII 0 Keyboard 0 Movement Mouse Keybinds 0 Fullscreen 1 Font 24/Smallcaps Map View 50x35 Zoom Use 0% Tactical HUD 1 Map Filters NONE Filters NONE Steam 1 RUN: 58ce45a8-728d-4de6-8639-b738c36910ea